fUST/lending_fUST_20260522
["ID","MTS","AMOUNT","RATE_DAILY","PERIOD"]
[422810960,1779441047000,-300.0,6.147e-05,2]
[422810949,1779441047000,-325.9848009,6.028e-05,2]
[422810950,1779441047000,-151.0,6.028e-05,2]
[422810948,1779441047000,-456.643312,6.028e-05,2]
[422810945,1779441047000,-1112.48838111,5.848e-05,2]
[422810947,1779441047000,-152.7630595,6.028e-05,2]
[422810946,1779441047000,-266.56939241,6.027e-05,2]
[422810922,1779441047000,-3188.75540408,5.848e-05,2]
[422810923,1779441047000,-698.75621481,5.848e-05,2]
[422810953,1779441047000,-300.0,6.147e-05,2]
[422810965,1779441047000,-300.0,6.147e-05,2]
[422810976,1779441047000,-900.0,6.797e-05,2]
[422810975,1779441047000,-152.0,6.763e-05,2]
[422810984,1779441047000,-317.21356443,6.933e-05,2]
[422810966,1779441047000,-300.0,6.147e-05,2]
[422810988,1779441047000,-4537.58154151,6.997e-05,2]
[422810986,1779441047000,-417.3953012,6.933e-05,2]
[422810985,1779441047000,-1267.58540345,6.933e-05,2]
[422810981,1779441047000,-244.1891963,6.873e-05,2]
[422810983,1779441047000,-540.64815435,6.931e-05,2]
[422810982,1779441047000,-720.0,6.896e-05,2]
[422810987,1779441047000,-1364.77733543,6.997e-05,2]
[422810979,1779441047000,-151.0,6.85e-05,2]
[422810980,1779441047000,-325.5080562,6.873e-05,2]
[422810978,1779441047000,-325.0703113,6.85e-05,2]
[422810962,1779441047000,-300.0,6.147e-05,2]
[422810967,1779441047000,-300.0,6.147e-05,2]
[422810968,1779441047000,-300.0,6.147e-05,2]
[422810969,1779441047000,-600.0,6.269e-05,2]
[422810977,1779441047000,-151.0,6.85e-05,2]
[422810972,1779441047000,-152.0,6.696e-05,7]
[422810970,1779441047000,-1131.0,6.595e-05,2]
[422810971,1779441047000,-420.0,6.629e-05,2]
[422810964,1779441047000,-300.0,6.147e-05,2]
[422811012,1779441849000,555.0,0.00017808,120]
[422811013,1779441877000,222.0,0.00017808,120]
[422811069,1779442231000,-464.66651364,6.044e-05,2]
[422811119,1779442238000,-4535.33348636,6.044e-05,2]
[422811124,1779442238000,-326.0,6.318e-05,2]
[422811120,1779442238000,-428.01519908,6.199e-05,2]
[422811142,1779442238000,-2616.00921664,6.32e-05,2]
[422811122,1779442238000,-300.0,6.318e-05,2]
[422811126,1779442238000,-3117.77689616,6.32e-05,2]
[422811628,1779442255000,-2118.91528219,6.32e-05,2]
[422811627,1779442255000,-17021.26879563,6.32e-05,2]
[422811640,1779443212000,5000.0,5.848e-05,2]
[422811651,1779443432000,-931.85262945,5.913e-05,2]
[422811650,1779443432000,-604.25309705,5.913e-05,2]
[422812295,1779443446000,-497.1572085,6.298e-05,2]
[422812293,1779443446000,-419.4548951,6.003e-05,2]
[422812294,1779443446000,-292.0,6.298e-05,2]
[422812296,1779443446000,-600.19039606,6.298e-05,2]
[422812297,1779443446000,-532.2833543,6.299e-05,2]
[422812298,1779443446000,-3068.51128961,6.299e-05,2]
[422812292,1779443446000,-3463.8942735,5.913e-05,2]
[422812299,1779443447000,-703.97930242,6.299e-05,2]
[422812309,1779444074000,-4148.27009907,6.051e-05,2]
[422812317,1779444295000,1145.891,5.216e-05,2]
[422812318,1779444295000,367.45239153,5.216e-05,2]
[422812340,1779444632000,-463.62756025,5.111e-05,2]
[422812767,1779444643000,-3198.67314031,5.111e-05,2]
[422812766,1779444643000,-1337.69929944,5.111e-05,2]
[422812770,1779444644000,-433.06191299,5.215e-05,2]
[422812771,1779444644000,-5732.69432905,5.216e-05,2]
[422812768,1779444644000,-1190.0,5.214e-05,2]
[422812769,1779444644000,-300.0,5.215e-05,2]
[422812797,1779444647000,-300.0,5.319e-05,2]
[422812798,1779444647000,-300.0,5.319e-05,2]
[422812794,1779444647000,-300.0,5.319e-05,2]
[422812793,1779444647000,-300.0,5.319e-05,2]
[422812789,1779444647000,-300.0,5.319e-05,2]
[422812792,1779444647000,-300.0,5.319e-05,2]
[422812788,1779444647000,-300.0,5.319e-05,2]
[422812791,1779444647000,-300.0,5.319e-05,2]
[422812790,1779444647000,-300.0,5.319e-05,2]
[422812785,1779444647000,-4648.80685092,5.216e-05,2]
[422812799,1779444647000,-300.0,5.319e-05,2]
[422812795,1779444647000,-300.0,5.319e-05,2]
[422812786,1779444647000,-300.0,5.319e-05,2]
[422812787,1779444647000,-300.0,5.319e-05,2]
[422812809,1779444647000,-500.0,6.116e-05,2]
[422812796,1779444647000,-300.0,5.319e-05,2]
[422812802,1779444647000,-170.677,6.093e-05,2]
[422812812,1779444647000,-500.0,6.116e-05,2]
[422812811,1779444647000,-500.0,6.116e-05,2]
[422812816,1779444647000,-500.0,6.116e-05,2]
[422812813,1779444647000,-245.31022847,6.116e-05,2]
[422812815,1779444647000,-500.0,6.116e-05,2]
[422812810,1779444647000,-500.0,6.116e-05,2]
[422812817,1779444647000,-7002.41060224,6.117e-05,2]
[422812807,1779444647000,-497.1572085,6.116e-05,2]
[422812805,1779444647000,-498.98044417,6.116e-05,2]
[422812806,1779444647000,-400.76141777,6.116e-05,2]
[422812800,1779444647000,-300.0,5.319e-05,2]
[422812814,1779444647000,-500.0,6.116e-05,2]
[422812808,1779444647000,-600.19039606,6.116e-05,2]
[422812804,1779444647000,-1.01955583,6.116e-05,2]
[422812803,1779444647000,-500.0,6.116e-05,2]
[422812801,1779444647000,-420.0,5.736e-05,2]
[422812838,1779445386000,552.216746,4.912e-05,2]
[422812892,1779445835000,-5000.0,5.644e-05,2]
[422812893,1779445836000,-274.90670836,5.758e-05,2]
[422812907,1779445838000,-157.88306428,5.758e-05,2]
[422812934,1779445838000,-500.0,5.816e-05,2]
[422812932,1779445838000,-436.91350452,5.816e-05,2]
[422812920,1779445838000,-500.0,5.816e-05,2]
[422812922,1779445838000,-500.0,5.816e-05,2]
[422812930,1779445838000,-63.08649548,5.816e-05,2]
[422812913,1779445838000,-628.65127549,5.816e-05,2]
[422812936,1779445838000,-500.0,5.816e-05,2]
[422812914,1779445838000,-500.0,5.816e-05,2]
[422812918,1779445838000,-500.0,5.816e-05,2]
[422812910,1779445838000,-500.0,5.816e-05,2]
[422812911,1779445838000,-500.0,5.816e-05,2]
[422812909,1779445838000,-500.0,5.816e-05,2]
[422812908,1779445838000,-152.01535541,5.816e-05,2]
[422812916,1779445838000,-500.0,5.816e-05,2]
[422812924,1779445838000,-500.0,5.816e-05,2]
[422812947,1779445838000,-500.0,5.816e-05,2]
[422812926,1779445838000,-500.0,5.816e-05,2]
[422812939,1779445838000,-500.0,5.816e-05,2]
[422812949,1779445838000,-500.0,5.816e-05,2]
[422812951,1779445838000,-500.0,5.816e-05,2]
[422812952,1779445838000,-500.0,5.816e-05,2]
[422812955,1779445838000,-300.0,5.816e-05,2]
[422812964,1779445838000,-5930.05604872,5.817e-05,2]
[422812950,1779445838000,-500.0,5.816e-05,2]
[422812962,1779445838000,-2885.14825558,5.817e-05,2]
[422812954,1779445838000,-614.78377835,5.816e-05,2]
[422812959,1779445838000,-1485.09819166,5.817e-05,2]
[422812957,1779445838000,-44202.75136672,5.817e-05,2]
[422812945,1779445838000,-500.0,5.816e-05,2]
[422812943,1779445838000,-500.0,5.816e-05,2]
[422812941,1779445838000,-500.0,5.816e-05,2]
[422812938,1779445838000,-500.0,5.816e-05,2]
[422812928,1779445838000,-500.0,5.816e-05,2]
[422813214,1779445853000,-12021.26879563,5.817e-05,2]
[422813215,1779445854000,-10458.36476641,5.817e-05,2]
[422813217,1779445854000,-8593.26675263,5.817e-05,2]
[422813216,1779445854000,-3779.59278772,5.817e-05,2]
[422813228,1779446279000,-5000.0,5.56e-05,2]
[422813229,1779446281000,-5000.0,5.504e-05,2]
[422813231,1779446285000,-300.0,5.616e-05,2]
[422813232,1779446285000,-424.13397718,5.616e-05,2]
[422813230,1779446285000,-236.51680839,5.616e-05,2]
[422813233,1779446285000,-4039.34921443,5.617e-05,2]
[422813234,1779446291000,-5000.0,5.617e-05,2]
[422813235,1779446292000,-5000.0,5.617e-05,2]
[422813236,1779446293000,-5000.0,5.617e-05,2]
[422813237,1779446294000,-5000.0,5.617e-05,2]
[422813238,1779446295000,-5000.0,5.617e-05,2]
[422813239,1779446298000,-5000.0,5.617e-05,2]
[422813240,1779446299000,-5000.0,5.617e-05,2]
[422813241,1779446301000,-5000.0,5.617e-05,2]
[422813242,1779446303000,-5000.0,5.617e-05,2]
[422813244,1779446303000,-1637.73958517,5.617e-05,2]
[422813243,1779446303000,-3362.26041483,5.561e-05,2]
[422813246,1779446304000,-5000.0,5.617e-05,2]
[422813245,1779446304000,-5000.0,5.617e-05,2]
[422813247,1779446305000,-5000.0,5.617e-05,2]
[422813249,1779446306000,-5000.0,5.617e-05,2]
[422813248,1779446306000,-5000.0,5.617e-05,2]
[422813251,1779446307000,-5000.0,5.617e-05,2]
[422813250,1779446307000,-5000.0,5.617e-05,2]
[422813252,1779446308000,-5000.0,5.617e-05,2]
[422813254,1779446308000,-5000.0,5.617e-05,2]
[422813253,1779446308000,-5000.0,5.617e-05,2]
[422813255,1779446309000,-5000.0,5.617e-05,2]
[422813256,1779446310000,-5000.0,5.617e-05,2]
[422813257,1779446311000,-5000.0,5.617e-05,2]
[422813258,1779446312000,-5000.0,5.617e-05,2]
[422813260,1779446312000,-5000.0,5.617e-05,2]
[422813259,1779446312000,-5000.0,5.617e-05,2]
[422813262,1779446313000,-2862.16331847,5.717e-05,2]
[422813261,1779446313000,-2137.83668153,5.617e-05,2]
[422813263,1779446314000,-5000.0,5.717e-05,2]
[422813265,1779446317000,-5000.0,5.717e-05,2]
[422813264,1779446317000,-5000.0,5.717e-05,2]
[422813266,1779446318000,-5000.0,5.717e-05,2]
[422813267,1779446319000,-5000.0,5.717e-05,2]
[422813268,1779446321000,-5000.0,5.717e-05,2]
[422813269,1779446426000,-5000.0,5.407e-05,2]
[422813270,1779446441000,-5000.0,5.407e-05,2]
[422813273,1779446447000,-633.50761119,5.617e-05,2]
[422813271,1779446447000,-2557.91608953,5.462e-05,2]
[422813272,1779446447000,-1808.57629928,5.517e-05,2]
[422813274,1779446458000,-5000.0,5.561e-05,2]
[422813275,1779446477000,-5000.0,5.56e-05,2]
[422813278,1779446490000,-4700.0,5.617e-05,2]
[422813277,1779446490000,-300.0,5.616e-05,2]
[422813279,1779446504000,-5000.0,5.561e-05,2]
[422813280,1779446521000,-5000.0,5.617e-05,2]
[422813281,1779446531000,-5000.0,5.561e-05,2]
[422813282,1779446548000,-5000.0,5.56e-05,2]
[422813293,1779446558000,-500.0,5.616e-05,2]
[422813283,1779446558000,-500.0,5.616e-05,2]
[422813284,1779446558000,-449.95610802,5.616e-05,2]
[422813287,1779446558000,-500.0,5.616e-05,2]
[422813288,1779446558000,-500.0,5.616e-05,2]
[422813286,1779446558000,-500.0,5.616e-05,2]
[422813292,1779446558000,-448.38405161,5.616e-05,2]
[422813291,1779446558000,-167.79124438,5.616e-05,2]
[422813290,1779446558000,-500.0,5.616e-05,2]
[422813294,1779446558000,-272.39038474,5.616e-05,2]
[422813289,1779446558000,-161.47821125,5.616e-05,2]
[422813285,1779446558000,-500.0,5.616e-05,2]
[422813296,1779446560000,-234.97597537,5.616e-05,2]
[422813298,1779446560000,-300.0,5.616e-05,2]
[422813297,1779446560000,-500.0,5.616e-05,2]
[422813295,1779446560000,-227.60961526,5.616e-05,2]
[422813299,1779446561000,-3737.41440937,5.617e-05,2]
[422813300,1779446565000,-5000.0,5.561e-05,2]
[422813301,1779446572000,-500.0,5.616e-05,2]
[422813302,1779446572000,-250.0,5.616e-05,2]
[422813303,1779446572000,-4250.0,5.617e-05,2]
[422813304,1779446599000,-5000.0,5.56e-05,2]
[422813306,1779446600000,-4700.0,5.617e-05,2]
[422813305,1779446600000,-300.0,5.616e-05,2]
[422813310,1779446618000,-4568.34889085,5.617e-05,2]
[422813309,1779446618000,-431.65110915,5.616e-05,2]
[422813308,1779446618000,-5000.0,5.56e-05,2]
[422813311,1779446648000,-5000.0,5.561e-05,2]
[422813312,1779446649000,-300.0,5.616e-05,2]
[422813313,1779446649000,-4700.0,5.617e-05,2]
[422813314,1779446660000,-5000.0,5.561e-05,2]
[422813315,1779446680000,-5000.0,5.561e-05,2]
[422813316,1779446703000,-5000.0,5.561e-05,2]
[422813318,1779446706000,-4700.0,5.617e-05,2]
[422813317,1779446706000,-300.0,5.616e-05,2]
[422813333,1779446779000,-300.0,5.616e-05,2]
[422813334,1779446779000,-4700.0,5.617e-05,2]
[422813335,1779446781000,-5000.0,5.617e-05,2]
[422813336,1779446782000,-5000.0,5.617e-05,2]
[422813338,1779446783000,-5000.0,5.617e-05,2]
[422813337,1779446783000,-5000.0,5.617e-05,2]
[422813339,1779446784000,-5000.0,5.617e-05,2]
[422813340,1779446785000,-5000.0,5.617e-05,2]
[422813341,1779446786000,-5000.0,5.617e-05,2]
[422813342,1779446787000,-5000.0,5.617e-05,2]
[422813343,1779446787000,-5000.0,5.617e-05,2]
[422813344,1779446788000,-5000.0,5.617e-05,2]
[422813345,1779446789000,-5000.0,5.617e-05,2]
[422813346,1779446790000,-5000.0,5.617e-05,2]
[422813347,1779446791000,-5000.0,5.617e-05,2]
[422813348,1779446792000,-5000.0,5.617e-05,2]
[422813349,1779446808000,-5000.0,5.617e-05,2]
[422813350,1779446809000,-5000.0,5.617e-05,2]
[422813351,1779446810000,-5000.0,5.617e-05,2]
[422813352,1779446811000,-5000.0,5.617e-05,2]
[422813353,1779446812000,-5000.0,5.617e-05,2]
[422813354,1779446894000,-1120.0,5.505e-05,2]
[422813358,1779446941000,-680.49621275,5.561e-05,2]
[422813357,1779446941000,-439.50378725,5.533e-05,2]
[422813356,1779446941000,-3880.0,5.505e-05,2]
[422813361,1779446955000,-380.49621275,5.616e-05,2]
[422813360,1779446955000,-300.0,5.615e-05,2]
[422813359,1779446955000,-4319.50378725,5.561e-05,2]
[422813365,1779446958000,-500.0,5.616e-05,2]
[422813364,1779446958000,-500.0,5.616e-05,2]
[422813363,1779446958000,-500.0,5.616e-05,2]
[422813367,1779446958000,-500.0,5.616e-05,2]
[422813362,1779446958000,-119.50378725,5.616e-05,2]
[422813368,1779446958000,-500.0,5.616e-05,2]
[422813371,1779446958000,-500.0,5.616e-05,2]
[422813366,1779446958000,-500.0,5.616e-05,2]
[422813369,1779446958000,-500.0,5.616e-05,2]
[422813370,1779446958000,-650.0,5.616e-05,2]
[422813384,1779446959000,-128.20217962,5.616e-05,2]
[422813372,1779446959000,-230.49621275,5.616e-05,2]
[422813382,1779446959000,-500.0,5.616e-05,2]
[422813374,1779446959000,-500.0,5.616e-05,2]
[422813376,1779446959000,-500.0,5.616e-05,2]
[422813377,1779446959000,-500.0,5.616e-05,2]
[422813373,1779446959000,-269.50378725,5.616e-05,2]
[422813379,1779446959000,-500.0,5.616e-05,2]
[422813383,1779446959000,-500.0,5.616e-05,2]
[422813380,1779446959000,-500.0,5.616e-05,2]
[422813381,1779446959000,-352.29403313,5.616e-05,2]
[422813378,1779446959000,-250.0,5.616e-05,2]
[422813375,1779446959000,-500.0,5.616e-05,2]
[422813386,1779446960000,-267.0810712,5.616e-05,2]
[422813391,1779446960000,-500.0,5.616e-05,2]
[422813392,1779446960000,-2161.12110842,5.617e-05,2]
[422813389,1779446960000,-500.0,5.616e-05,2]
[422813387,1779446960000,-500.0,5.616e-05,2]
[422813390,1779446960000,-500.0,5.616e-05,2]
[422813388,1779446960000,-200.0,5.616e-05,2]
[422813385,1779446960000,-371.79782038,5.616e-05,2]
[422813393,1779446961000,-5000.0,5.617e-05,2]
[422813394,1779446962000,-713.0,5.56e-05,2]
[422813395,1779446962000,-4287.0,5.617e-05,2]
[422813396,1779446963000,-5000.0,5.617e-05,2]
[422813397,1779446967000,-5000.0,5.617e-05,2]
[422813398,1779446968000,-5000.0,5.617e-05,2]
[422813399,1779446969000,-5000.0,5.617e-05,2]
[422813400,1779446970000,-5000.0,5.617e-05,2]
[422813404,1779447017000,-300.0,5.516e-05,2]
[422813403,1779447017000,-300.0,5.516e-05,2]
[422813402,1779447017000,-300.0,5.516e-05,2]
[422813405,1779447017000,-300.0,5.516e-05,2]
[422813407,1779447017000,-2600.0,5.517e-05,2]
[422813406,1779447017000,-1200.0,5.516e-05,2]
[422813450,1779447032000,-2175.26425871,5.517e-05,2]
[422813444,1779447032000,-386.96311676,5.517e-05,2]
[422813442,1779447032000,-862.59041789,5.517e-05,2]
[422813437,1779447032000,-269.08724583,5.517e-05,2]
[422813449,1779447032000,-581.3955505,5.517e-05,2]
[422813581,1779447043000,-304.0,5.517e-05,2]
[422813590,1779447044000,-1357.61666212,5.517e-05,2]
[422813589,1779447044000,-883.33,5.517e-05,2]
[422813588,1779447044000,-2674.99999824,5.517e-05,2]
[422813607,1779447047000,-95306.24317704,5.617e-05,2]
[422813606,1779447047000,-1750.74107162,5.617e-05,2]
[422813605,1779447047000,-5000.0,5.561e-05,2]
[422813608,1779447047000,-1933.425,5.617e-05,2]
[422813609,1779447047000,-675.7404708,5.617e-05,2]
[422813604,1779447047000,-1631.69747681,5.517e-05,2]
[422813636,1779447331000,-5000.0,5.154e-05,2]
[422813637,1779447348000,-4575.0,5.154e-05,2]
[422813662,1779447654000,-3109.4364065,5.102e-05,2]
[422813663,1779447664000,219.9840889,4.696e-05,2]
[422813664,1779447691000,28958.4789554,4.637e-05,2]
[422813665,1779447729000,-4877.17489157,5.051e-05,2]
[422813667,1779447913000,5000.0,5e-05,2]
[422813711,1779448231000,-1204.23062129,5.052e-05,2]
[422813762,1779448238000,-420.0,6.025e-05,2]
[422813766,1779448238000,-300.0,6.238e-05,2]
[422813763,1779448238000,-1412.35,6.193e-05,2]
[422813768,1779448238000,-300.0,6.238e-05,2]
[422813764,1779448238000,-300.0,6.238e-05,2]
[422813765,1779448238000,-300.0,6.238e-05,2]
[422813773,1779448238000,-300.0,6.238e-05,2]
[422813767,1779448238000,-300.0,6.238e-05,2]
[422813774,1779448238000,-300.0,6.238e-05,2]
[422813770,1779448238000,-300.0,6.238e-05,2]
[422813771,1779448238000,-300.0,6.238e-05,2]
[422813772,1779448238000,-300.0,6.238e-05,2]
[422813761,1779448238000,-334.0,6.025e-05,2]
[422813776,1779448238000,-300.0,6.238e-05,2]
[422813786,1779448238000,-443.0,6.655e-05,2]
[422813775,1779448238000,-300.0,6.238e-05,2]
[422813778,1779448238000,-300.0,6.238e-05,2]
[422813769,1779448238000,-300.0,6.238e-05,2]
[422813757,1779448238000,-309.6064489,6.004e-05,2]
[422813754,1779448238000,-500.0,5.851e-05,2]
[422813759,1779448238000,-420.0,6.025e-05,2]
[422813739,1779448238000,-2538.77102116,5.052e-05,2]
[422813740,1779448238000,-1256.99835755,5.052e-05,2]
[422813743,1779448238000,-300.0,5.477e-05,2]
[422813747,1779448238000,-7000.8787376,5.479e-05,2]
[422813741,1779448238000,-430.71371151,5.077e-05,2]
[422813742,1779448238000,-1200.0,5.476e-05,2]
[422813745,1779448238000,-300.0,5.477e-05,2]
[422813744,1779448238000,-300.0,5.477e-05,2]
[422813777,1779448238000,-300.0,6.238e-05,2]
[422813750,1779448238000,-152.0,5.667e-05,2]
[422813760,1779448238000,-300.0,6.025e-05,2]
[422813749,1779448238000,-202.852962,5.628e-05,2]
[422813752,1779448238000,-152.0,5.686e-05,2]
[422813751,1779448238000,-152.0,5.676e-05,2]
[422813756,1779448238000,-706.17,5.898e-05,2]
[422813753,1779448238000,-152.0,5.693e-05,2]
[422813755,1779448238000,-1412.35,5.898e-05,2]
[422813758,1779448238000,-1200.0,6.024e-05,2]
[422813782,1779448238000,-587.0,6.627e-05,2]
[422813746,1779448238000,-300.0,5.477e-05,2]
[422813783,1779448238000,-647.0,6.655e-05,2]
[422813805,1779448238000,-500.0,7.052e-05,2]
[422813803,1779448238000,-720.0,6.973e-05,2]
[422813809,1779448238000,-500.0,7.052e-05,2]
[422813806,1779448238000,-500.0,7.052e-05,2]
[422813811,1779448238000,-500.0,7.052e-05,2]
[422813807,1779448238000,-198.180922,7.052e-05,2]
[422813808,1779448238000,-500.0,7.052e-05,2]
[422813810,1779448238000,-500.0,7.052e-05,2]
[422813804,1779448238000,-279.44546736,7.052e-05,2]
[422813813,1779448238000,-500.0,7.052e-05,2]
[422813815,1779448238000,-500.0,7.052e-05,2]
[422813816,1779448238000,-500.0,7.052e-05,2]
[422813819,1779448238000,-13589.92567747,7.053e-05,2]
[422813820,1779448238000,-6006.88351959,7.053e-05,2]
[422813817,1779448238000,-500.0,7.052e-05,2]
[422813818,1779448238000,-250.0,7.052e-05,2]
[422813821,1779448238000,-705.68628654,7.053e-05,2]
[422813780,1779448238000,-151.0,6.5e-05,2]
[422813814,1779448238000,-500.0,7.052e-05,2]
[422813801,1779448238000,-184.20473354,6.85e-05,2]
[422813748,1779448238000,-250.0,5.548e-05,2]
[422813802,1779448238000,-2160.4300248,6.949e-05,2]
[422813784,1779448238000,-2203.0,6.655e-05,2]
[422813779,1779448238000,-600.0,6.339e-05,2]
[422813781,1779448238000,-181.0,6.627e-05,2]
[422813788,1779448238000,-185.0,6.655e-05,2]
[422813789,1779448238000,-152.0,6.692e-05,7]
[422813799,1779448238000,-555.0,6.849e-05,2]
[422813791,1779448238000,-201.39613467,6.8e-05,2]
[422813794,1779448238000,-150.362,6.823e-05,2]
[422813787,1779448238000,-836.025,6.655e-05,2]
[422813797,1779448238000,-250.0,6.823e-05,2]
[422813812,1779448238000,-500.0,7.052e-05,2]
[422813800,1779448238000,-737.55649064,6.85e-05,2]
[422813792,1779448238000,-202.852962,6.813e-05,2]
[422813795,1779448238000,-214.072,6.823e-05,2]
[422813785,1779448238000,-1413.0,6.655e-05,2]
[422813798,1779448238000,-152.4,6.823e-05,2]
[422813796,1779448238000,-150.93,6.823e-05,2]
[422813793,1779448238000,-150.071,6.823e-05,2]
[422813790,1779448238000,-152.0,6.694e-05,7]
[422813862,1779448240000,-496.85212238,7.053e-05,2]
[422813917,1779448243000,-386.56,7.053e-05,2]
[422813914,1779448243000,-36049.93414243,7.053e-05,2]
[422813912,1779448243000,-1107.9990059,7.053e-05,2]
[422813908,1779448243000,-2702.50000204,7.053e-05,2]
[422813910,1779448243000,-1232.83171686,7.053e-05,2]
[422813916,1779448243000,-77888.0,7.053e-05,2]
[422813958,1779448246000,-251.8978968,6.651e-05,2]
[422813956,1779448246000,-250.0,6.651e-05,2]
[422813954,1779448246000,-612.52125603,6.651e-05,2]
[422813947,1779448246000,-500.0,6.651e-05,2]
[422813950,1779448246000,-500.0,6.651e-05,2]
[422813960,1779448246000,-350.0,6.651e-05,2]
[422813962,1779448246000,-86593.47760046,7.053e-05,2]
[422813994,1779448246000,-28253.46091168,7.053e-05,2]
[422814000,1779448246000,-16021.55734449,7.053e-05,2]
[422813951,1779448246000,-500.0,6.651e-05,2]
[422814209,1779449435000,-5000.0,5.326e-05,2]
[422814219,1779449436000,-152.0,6.697e-05,7]
[422814218,1779449436000,-152.0,6.697e-05,7]
[422814212,1779449436000,-500.0,6.145e-05,2]
[422814213,1779449436000,-88.14413052,6.626e-05,2]
[422814220,1779449436000,-152.0,6.699e-05,7]
[422814215,1779449436000,-152.0,6.695e-05,7]
[422814214,1779449436000,-320.99544464,6.626e-05,2]
[422814216,1779449436000,-152.0,6.695e-05,7]
[422814211,1779449436000,-152.0,6.057e-05,2]
[422814210,1779449436000,-432.37986441,5.51e-05,2]
[422814217,1779449436000,-152.0,6.695e-05,7]
[422814224,1779449436000,-838.48508297,6.7e-05,2]
[422814223,1779449436000,-400.59115022,6.7e-05,2]
[422814228,1779449436000,-263.7266454,6.725e-05,2]
[422814231,1779449436000,-500.0,6.725e-05,2]
[422814222,1779449436000,-25.19031034,6.7e-05,2]
[422814225,1779449436000,-925.61350342,6.7e-05,2]
[422814229,1779449436000,-500.0,6.725e-05,2]
[422814227,1779449436000,-500.0,6.725e-05,2]
[422814230,1779449436000,-500.0,6.725e-05,2]
[422814226,1779449436000,-980.92972611,6.7e-05,2]
[422814232,1779449436000,-428.10464375,6.725e-05,2]
[422814221,1779449436000,-300.0,6.699e-05,2]
[422814251,1779449438000,-177.39557219,6.725e-05,2]
[422814250,1779449438000,-71.89535625,6.725e-05,2]
[422814253,1779449438000,-497.05699584,6.725e-05,2]
[422814254,1779449438000,-327.13279617,6.725e-05,2]
[422814252,1779449438000,-500.0,6.725e-05,2]
[422814277,1779449453000,-500.0,6.725e-05,2]
[422814279,1779449453000,-60852.7342095,6.726e-05,2]
[422814278,1779449453000,-300.0,6.725e-05,2]
[422814276,1779449453000,-500.0,6.725e-05,2]
[422814275,1779449453000,-172.86720383,6.725e-05,2]
[422814274,1779449453000,-152.0,6.083e-05,2]
[422814280,1779449454000,-7571.7439277,6.726e-05,2]
[422814284,1779449454000,-9211.94721541,6.726e-05,2]
[422814281,1779449454000,-5287.74776921,6.726e-05,2]
[422814283,1779449454000,-33033.5024138,6.726e-05,2]
[422814282,1779449454000,-29141.06137,6.726e-05,2]
[422814338,1779450632000,-300.0,6.524e-05,2]
[422814319,1779450632000,-359.8667128,5.866e-05,2]
[422814321,1779450632000,-4073.65859,5.866e-05,2]
[422814324,1779450632000,-566.4746972,5.866e-05,2]
[422814326,1779450632000,-68.69306181,6.016e-05,2]
[422814336,1779450632000,-151.39411938,6.522e-05,2]
[422814341,1779450632000,-2249.12702966,6.526e-05,2]
[422814330,1779450632000,-80.72681403,6.016e-05,2]
[422814344,1779450632000,-12437.39887782,6.526e-05,2]
[422814340,1779450632000,-837.0,6.525e-05,2]
[422814334,1779450632000,-178.86,6.396e-05,2]
[422814332,1779450632000,-500.0,6.211e-05,2]
[422814328,1779450632000,-285.94924944,6.016e-05,2]
[422814369,1779450642000,-831.71238038,6.526e-05,2]
[422814367,1779450642000,-947.35741004,6.461e-05,2]
[422814368,1779450642000,-393.7616138,6.526e-05,2]
[422814365,1779450642000,-4052.64258996,6.461e-05,2]
[422814381,1779450644000,-5199.9349,6.526e-05,2]
[422814380,1779450644000,-5741.8086363,6.526e-05,2]
[422814388,1779450646000,-337.2,6.526e-05,2]
[422814391,1779450646000,-448.3963019,6.526e-05,2]
[422814387,1779450646000,-7555.21288691,6.526e-05,2]
[422814394,1779450647000,-540.92371165,6.526e-05,2]
[422814392,1779450647000,-5624.16634659,6.526e-05,2]
[422814393,1779450647000,-64384.96069837,6.526e-05,2]
[422814526,1779451254000,-2645.93523695,5.09e-05,2]
[422814529,1779451424000,5000.0,5e-05,2]
[422814533,1779451638000,5000.0,5e-05,2]
[422814542,1779451782000,2670.0738311,4.714e-05,2]
[422814615,1779451841000,-300.0,5.824e-05,2]
[422814603,1779451841000,-445.09001275,5.103e-05,2]
[422814618,1779451841000,-300.0,5.824e-05,2]
[422814621,1779451841000,-300.0,5.824e-05,2]
[422814619,1779451841000,-300.0,5.824e-05,2]
[422814620,1779451841000,-300.0,5.824e-05,2]